bitfinex-derivatives/quotes_SOLF0:USTF0_20241127
["timestamp","ask_amount","ask_price","bid_price","bid_amount"]
[1732681970449,2.56,232.7,232.58,10.65803512]
[1732681970636,10.65803512,232.73,232.59,1.2056]
[1732681970837,10.65803512,232.73,232.59,3.35297379]
[1732681971475,10.65803512,232.73,232.59,7.0827244]
[1732681971839,10.65803512,232.73,232.66,2.1497]
[1732681972246,12.80713512,232.73,232.64,2.1499]
[1732681972446,12.80713512,232.73,232.59,1.2056]
[1732681973141,12.80713512,232.73,232.65,2.1498]
[1732681974137,2.1491,232.73,232.65,2.1498]
[1732681974551,2.1492,232.72,232.65,2.1498]
[1732681975545,2.56,232.75,232.63,2.15]
[1732681976347,2.1491,232.73,232.63,2.15]
[1732681976648,2.56,232.74,232.65,2.1498]
[1732681977451,2.56,232.74,232.62,10.65803512]
[1732681977452,2.56,232.74,232.67,2.1496]
[1732681977645,2.56,232.74,232.65,10.65803512]
[1732681977846,2.56,232.78,232.65,10.65803512]
[1732681979047,10.65803512,232.71,232.53,23.5084976]
[1732681979254,10.65803512,232.68,232.52,10.65803512]
[1732681979447,2.56,232.67,232.52,10.65803512]
[1732681980351,2.15,232.64,232.58,2.1505]
[1732681980953,2.56,232.67,232.55,10.65803512]
[1732681982449,2.56,232.67,232.49,0.26941]
[1732681982450,10.65803512,232.63,232.49,0.26941]
[1732681982760,10.65803512,232.55,232.49,0.26941]
[1732681983054,2.56,232.54,232.49,0.26941]
[1732681983257,2.56,232.53,232.49,0.26941]
[1732681983456,2.56,232.52,232.49,0.26941]
[1732681983958,2.4496,232.57,232.49,0.26941]
[1732681984260,4.7108,232.56,232.49,0.26941]
[1732681985458,4.7108,232.56,232.3,5.8771244]
[1732681985459,17.06727136,232.53,232.3,5.8771244]
[1732681985657,17.06727136,232.53,232.31,3.518679]
[1732681985853,17.06727136,232.53,232.32,3.518679]
[1732681986053,17.06727136,232.53,232.3,17.06727136]
[1732681986054,17.06727136,232.49,232.3,17.06727136]
[1732681986250,2.56,232.48,232.3,17.06727136]
[1732681986654,2.1522,232.4,232.31,2.153]
[1732681986856,4.7122,232.4,232.31,2.153]
[1732681987356,4.7122,232.4,232.31,2.1529]
[1732681988155,2.56,232.4,232.3,17.06727136]
[1732681988361,2.1523,232.39,232.3,2.1531]
[1732681989757,2.1524,232.38,232.3,2.1531]
[1732681990461,2.1525,232.37,232.29,1.228]
[1732681991062,2.1525,232.37,232.3,2.1531]
[1732681991457,4.7122,232.4,232.29,1.228]
[1732681991666,2.56,232.4,232.26,2.1534]
[1732681991857,17.06727136,232.37,232.21,2.568]
[1732681992162,2.56,232.4,232.21,1.3161]
[1732681992364,17.06727136,232.35,232.21,1.3161]
[1732681992563,2.1532,232.29,232.21,1.3161]
[1732681992864,2.56,232.28,232.18,1.3203]
[1732681993070,4.7133,232.28,232.19,5.64196173]
[1732681993260,2.56,232.28,232.2,1.07736038]
[1732681993562,2.56,232.28,232.14,34.56740926]
[1732681993768,2.56,232.28,232.15,3.48697076]
[1732681993963,2.56,232.28,232.16,3.48697076]
[1732681994159,2.56,232.28,232.17,1.07742887]
[1732681994355,2.56,232.28,232.14,34.56740926]
[1732681994563,2.56,232.28,232.15,3.48531086]
[1732681994771,2.56,232.28,232.16,1.07749018]
[1732681994965,2.1538,232.23,232.16,2.1543]
[1732681995557,2.56,232.28,232.16,2.1543]
[1732681995558,2.1537,232.24,232.16,2.1543]
[1732681995762,2.56,232.28,232.16,2.1543]
[1732681996469,2.1536,232.25,232.17,2.1543]
[1732681996762,2.56,232.28,232.14,34.56740926]
[1732681997169,4.7133,232.28,232.19,2.1541]
[1732681997365,2.56,232.28,232.14,34.56740926]
[1732681997866,2.1536,232.25,232.16,2.1543]
[1732681998065,2.56,232.28,232.16,2.1543]
[1732681998664,2.1535,232.26,232.17,2.1543]
[1732681999165,2.1535,232.26,232.14,34.56740926]
[1732681999166,1.286,232.32,232.15,17.06727136]
[1732681999368,3.906,232.32,232.16,2.62]
[1732681999876,3.906,232.32,232.23,2.1537]
[1732682000364,3.906,232.32,232.25,2.1535]
[1732682000769,2.62,232.32,232.19,17.06727136]
[1732682001771,4.7729,232.32,232.25,2.1535]
[1732682001971,2.62,232.32,232.19,17.06727136]
[1732682002176,2.62,232.32,232.26,2.1534]
[1732682002663,2.62,232.32,232.19,17.06727136]
[1732682002872,2.62,232.32,232.27,2.1534]
[1732682003073,2.62,232.32,232.19,17.06727136]
[1732682003566,2.62,232.32,232.22,2.1538]
[1732682003771,2.62,232.32,232.19,19.68727136]
[1732682004273,2.62,232.32,232.19,2.62]
[1732682004768,2.1531,232.3,232.19,2.62]
[1732682006071,17.06727136,232.28,232.1,1.3161]
[1732682006276,10.69791489,232.23,232.13,2.1546]
[1732682006471,2.62,232.22,232.13,2.1546]
[1732682006665,2.62,232.22,232.1,1.3161]
[1732682006866,2.154,232.21,232.1,1.3161]
[1732682007368,2.62,232.22,232.1,1.3161]
[1732682007589,2.62,232.22,232.16,2.1544]
[1732682009177,2.62,232.22,232.18,2.1542]
[1732682009572,2.62,232.22,232.1,1.3161]
[1732682009573,2.62,232.25,232.1,1.3161]
[1732682010172,1.2145,232.27,232.11,17.1136637]
[1732682010577,1.2145,232.27,232.15,17.1136637]
[1732682010777,3.8974,232.29,232.16,3.9499]
[1732682010973,3.8974,232.29,232.25,2.1536]
[1732682011172,3.8974,232.29,232.16,3.9499]
[1732682012069,3.8974,232.29,232.24,2.1536]
[1732682012269,17.1136637,232.28,232.1,1.3161]
[1732682012475,17.1136637,232.24,232.1,1.3161]
[1732682012677,2.62,232.23,232.1,1.3161]
[1732682012877,2.1541,232.2,232.12,2.1547]
[1732682013079,2.62,232.23,232.1,1.3161]
[1732682013679,2.62,232.23,232.12,2.1548]
[1732682014281,2.62,232.23,232.1,1.3161]
[1732682014574,2.154,232.21,232.13,2.1546]
[1732682015177,2.62,232.23,232.1,1.3161]
[1732682015682,2.62,232.23,232.19,2.1541]
[1732682016175,2.62,232.23,232.1,1.3161]
[1732682016176,2.1534,232.27,232.2,2.1539]
[1732682016379,2.62,232.26,232.2,2.1539]
[1732682016874,2.62,232.26,232.13,2.62]
[1732682017079,17.1136637,232.32,232.14,28.18339589]
[1732682017080,2.62,232.31,232.14,28.18339589]
[1732682017271,2.62,232.31,232.17,5.8771244]
[1732682017581,2.62,232.31,232.26,2.1535]
[1732682018574,2.62,232.31,232.19,5.8771244]
[1732682018784,2.62,232.32,232.19,8.4971244]
[1732682019102,2.62,232.34,232.21,5.8771244]
[1732682019279,2.62,232.34,232.28,2.1533]
[1732682021681,4.7727,232.34,232.28,2.1533]
[1732682022376,2.62,232.34,232.28,2.1533]
[1732682022577,2.62,232.34,232.29,2.1532]
[1732682022777,2.62,232.34,232.22,70.52549282]
[1732682023277,2.62,232.34,232.22,141.05326638]
[1732682023478,2.62,232.34,232.29,2.1531]
[1732682023881,2.62,232.34,232.22,70.52549282]
[1732682024075,2.1524,232.37,232.3,2.153]
[1732682024279,4.7724,232.37,232.23,70.52549282]
[1732682024583,4.7724,232.37,232.23,141.05326638]
[1732682024783,2.62,232.37,232.24,1.2885]
[1732682024983,2.62,232.37,232.25,128.05362433]
[1732682025178,2.62,232.37,232.25,144.94186638]
[1732682025584,1.2737,232.42,232.25,144.94186638]
[1732682025779,2.62,232.41,232.25,144.94186638]
[1732682025985,2.62,232.41,232.26,128.08541416]
[1732682026180,2.62,232.41,232.25,74.41409282]
[1732682026579,2.62,232.41,232.31,2.1529]
[1732682026981,2.1524,232.38,232.31,2.1529]
[1732682027393,2.1524,232.38,232.25,74.41409282]
[1732682027589,2.1524,232.38,232.32,2.1529]
[1732682029386,12.83523999,232.4,232.33,2.1528]
[1732682029586,12.83523999,232.4,232.27,23.5084976]
[1732682029785,12.83523999,232.4,232.28,1.07728309]
[1732682029987,12.83523999,232.4,232.29,1.07728309]
[1732682030189,12.83523999,232.4,232.33,2.1527]
[1732682030405,10.68293999,232.4,232.33,2.1527]
[1732682030593,10.68293999,232.37,232.27,5.8771244]
[1732682030792,10.68293999,232.34,232.25,1.2686]
[1732682030981,10.68293999,232.34,232.26,1.07739771]
[1732682031181,10.68293999,232.31,232.24,3.4421]
[1732682031893,12.83593999,232.31,232.25,2.1535]
[1732682032185,10.68293999,232.31,232.24,1.2885]
[1732682033287,2.153,232.31,232.27,2.1534]
[1732682033885,10.68293999,232.34,232.24,1.2885]
[1732682034089,2.58,232.35,232.25,1.07747885]
[1732682034292,2.58,232.35,232.24,1.2885]
[1732682034491,2.58,232.35,232.25,1.07745635]
[1732682034692,2.58,232.35,232.29,2.1532]
[1732682036297,2.1527,232.34,232.28,2.1533]
[1732682036696,4.7326,232.35,232.28,2.1532]
[1732682037495,10.68293999,232.31,232.14,5.8771244]
[1732682037686,10.68293999,232.31,232.17,5.99161461]
[1732682037886,10.68293999,232.31,232.18,2.4330275]
[1732682038094,10.68293999,232.31,232.17,2.481]
[1732682038287,2.1534,232.27,232.21,2.1539]
[1732682040992,4.7333,232.28,232.17,2.481]
[1732682041195,2.58,232.28,232.18,10.68293999]
[1732682041393,2.58,232.31,232.18,10.68293999]
[1732682041787,2.58,232.34,232.21,10.68293999]
[1732682041985,2.58,232.34,232.17,2.481]
[1732682042190,2.58,232.34,232.25,2.1536]
[1732682042393,2.58,232.34,232.22,10.68293999]
[1732682042891,2.58,232.34,232.17,2.481]
[1732682043093,2.153,232.31,232.19,10.68293999]
[1732682043296,2.58,232.34,232.29,2.1532]
[1732682043603,2.58,232.34,232.22,10.68293999]
[1732682043918,4.7327,232.34,232.22,10.68293999]
[1732682044991,4.7327,232.34,232.25,2.1535]
[1732682045194,4.7327,232.34,232.22,10.68293999]
[1732682046098,4.7327,232.34,232.29,2.1532]
[1732682046303,2.1527,232.34,232.29,2.1532]
[1732682047021,2.153,232.31,232.26,2.1534]
[1732682047397,13.26293999,232.38,232.26,2.1534]
[1732682047702,13.26293999,232.38,232.22,10.68293999]
[1732682048387,2.1528,232.33,232.27,2.1533]
[1732682048795,13.26293999,232.38,232.27,2.1533]
[1732682048999,13.26293999,232.38,232.21,2.58]
[1732682049000,2.1531,232.3,232.24,2.1536]
[1732682049294,10.68293999,232.35,232.24,2.1536]
[1732682049295,2.58,232.32,232.24,2.1536]
[1732682049595,2.1532,232.29,232.22,2.1537]
[1732682049799,2.1532,232.29,232.19,10.68293999]
[1732682050100,2.58,232.32,232.19,10.68293999]
[1732682050301,2.58,232.32,232.27,2.1533]
[1732682050901,2.58,232.32,232.22,10.68293999]
[1732682051291,10.68293999,232.38,232.29,2.1532]
[1732682051498,2.1526,232.35,232.23,2.58]
[1732682052307,2.1527,232.34,232.23,2.58]
[1732682052506,10.68293999,232.32,232.17,5.061]
[1732682052699,2.58,232.31,232.18,1.07752329]
[1732682052906,2.58,232.31,232.17,5.061]
[1732682053404,2.1535,232.26,232.21,2.1539]
[1732682054906,2.1536,232.25,232.17,5.061]
[1732682056007,10.68293999,232.29,232.18,2.1541]
[1732682056306,10.68293999,232.29,232.17,2.481]
[1732682056608,10.68293999,232.29,232.18,2.1541]
[1732682056904,2.1537,232.24,232.18,2.1541]
[1732682057501,2.64,232.25,232.12,0.49578]
[1732682058408,2.1541,232.2,232.14,2.1546]
[1732682058607,2.1541,232.2,232.12,0.49578]
[1732682058811,2.64,232.25,232.15,2.1545]
[1732682059003,2.64,232.25,232.12,11.17871999]
[1732682059607,4.7936,232.25,232.18,2.1541]
[1732682059804,2.64,232.25,232.18,2.1541]
[1732682060708,2.64,232.25,232.12,0.49578]
[1732682060911,2.64,232.25,232.13,2.43930866]
[1732682061104,2.64,232.25,232.14,1.0777847]
[1732682061309,2.64,232.25,232.12,0.49578]
[1732682061509,2.64,232.25,232.13,3.5164848]
[1732682061806,2.64,232.25,232.14,1.07779547]
[1732682062007,2.64,232.25,232.12,0.49578]
[1732682062209,2.1538,232.22,232.14,2.1545]
[1732682062421,2.64,232.25,232.14,2.1545]
[1732682062710,2.64,232.25,232.12,0.49578]
[1732682062910,2.1539,232.21,232.15,2.1545]
[1732682063906,2.1538,232.23,232.12,0.49578]
[1732682065010,2.64,232.25,232.12,0.49578]
[1732682065210,2.1538,232.22,232.16,2.1544]
[1732682065413,2.64,232.25,232.13,1.0778089]
[1732682065614,2.154,232.21,232.15,2.1545]
[1732682065819,2.64,232.25,232.12,0.49578]
[1732682066109,2.64,232.25,232.13,1.07781406]
[1732682066411,2.64,232.25,232.12,0.49578]
[1732682066607,2.64,232.25,232.13,1.07781406]
[1732682066807,2.64,232.25,232.12,0.49578]
[1732682067210,2.1538,232.22,232.16,2.1544]
[1732682067411,2.1538,232.22,232.12,0.49578]
[1732682068011,2.1538,232.23,232.13,1.0778089]
[1732682068216,2.64,232.25,232.12,0.49578]
[1732682068709,2.64,232.25,232.14,2.1545]
[1732682069316,10.68293999,232.23,232.12,0.49578]
[1732682069511,10.68293999,232.23,232.12,2.65048]
[1732682069911,2.1542,232.18,232.12,0.49578]
[1732682070518,2.1543,232.17,232.12,0.49578]
[1732682070910,2.64,232.19,232.12,0.49578]
[1732682071105,2.1543,232.17,232.12,0.49578]
[1732682071311,2.64,232.19,232.12,0.49578]
[1732682072314,2.1543,232.18,232.12,2.65058]
[1732682072716,2.1543,232.18,232.12,2.1548]
[1732682072916,2.64,232.19,232.13,2.1546]
[1732682073115,2.64,232.19,232.07,10.68293999]
[1732682073311,1.2008,232.22,232.1,10.68293999]
[1732682073312,3.8408,232.22,232.1,10.68293999]
[1732682073514,3.8408,232.22,232.16,2.1543]
[1732682073918,3.8408,232.22,232.1,10.68293999]
[1732682074128,3.8408,232.22,232.15,2.1544]
[1732682074129,5.9947,232.22,232.15,2.1544]
[1732682075511,5.9947,232.22,232.16,2.1544]
[1732682077921,2.1539,232.21,232.16,2.1544]
[1732682078723,3.8408,232.22,232.1,10.68293999]
[1732682079117,5.9947,232.22,232.1,10.68293999]
[1732682079814,2.64,232.22,232.2,2.154]
[1732682080016,11.92873999,232.29,232.13,10.68293999]
[1732682080220,2.64,232.26,232.13,10.68293999]
[1732682080421,2.1538,232.23,232.18,2.1541]
[1732682081026,2.1536,232.24,232.18,2.1541]
[1732682081222,6.84421983,232.23,232.15,2.1544]
[1732682081522,6.84421983,232.23,232.13,6.84421983]
[1732682081726,2.1539,232.22,232.15,6.84421983]
[1732682082122,2.1539,232.22,232.1,2.64]
[1732682082323,2.1539,232.22,232.15,6.84421983]
[1732682082717,2.1537,232.24,232.15,6.84421983]
[1732682082921,1.2458,232.29,232.19,6.84421983]
[1732682083122,6.84421983,232.29,232.24,2.1536]
[1732682083322,4.7931,232.31,232.23,6.84421983]
[1732682083625,2.1531,232.31,232.23,6.84421983]
[1732682084222,2.1531,232.31,232.24,2.1536]
[1732682084422,2.1531,232.31,232.23,6.84421983]
[1732682085227,2.1531,232.31,232.25,2.1536]
[1732682087723,2.64,232.32,232.23,2.1536]
[1732682087724,2.1532,232.3,232.23,2.1536]
[1732682087929,2.1532,232.3,232.2,10.68786167]
[1732682088130,13.32786167,232.32,232.19,2.5407]
[1732682088335,2.1536,232.25,232.19,2.5407]
[1732682088631,2.1536,232.25,232.19,1.274]
[1732682088924,13.20786167,232.26,232.14,1.2799]
[1732682089132,2.52,232.25,232.14,1.2799]
[1732682089730,2.1539,232.22,232.15,2.1544]
[1732682090432,2.52,232.25,232.14,1.2799]
[1732682091528,2.52,232.26,232.2,2.154]
[1732682091733,2.52,232.28,232.16,10.68786167]
[1732682092632,2.52,232.28,232.19,2.1541]
[1732682093234,2.1534,232.27,232.21,2.1539]
[1732682093936,2.1534,232.27,232.2,2.154]
[1732682094436,2.1534,232.27,232.16,10.68786167]
[1732682095135,4.6733,232.28,232.16,10.68786167]
[1732682095835,2.1534,232.27,232.21,2.1539]
[1732682096338,2.52,232.28,232.21,2.1539]
[1732682096539,2.1535,232.26,232.19,2.154]
[1732682096839,2.1535,232.26,232.16,10.68786167]
[1732682097138,2.1537,232.24,232.18,2.1542]
[1732682097332,2.52,232.28,232.18,2.1542]
[1732682098332,2.1537,232.24,232.18,2.1542]
[1732682098531,2.1537,232.24,232.19,2.1541]
[1732682098732,2.1536,232.26,232.16,10.68786167]
[1732682098935,10.68786167,232.29,232.17,1.07766101]
[1732682099135,2.52,232.27,232.2,2.154]
[1732682099934,4.6735,232.27,232.22,2.1538]
[1732682100334,2.52,232.29,232.16,10.68786167]
[1732682100536,2.52,232.29,232.17,3.51819034]
[1732682100735,2.52,232.31,232.19,10.68786167]
[1732682100935,2.52,232.31,232.2,3.51773584]
[1732682101235,2.52,232.31,232.16,10.68786167]
[1732682101433,2.52,232.31,232.17,3.51875685]
[1732682101636,2.52,232.31,232.16,10.68786167]
[1732682101834,2.1534,232.27,232.17,3.51907565]
[1732682102034,2.1534,232.27,232.18,3.51907565]
[1732682102233,2.1532,232.29,232.24,2.1536]
[1732682102434,2.52,232.31,232.16,10.68786167]
[1732682102630,2.52,232.31,232.17,3.51881784]
[1732682102938,2.52,232.31,232.23,2.1537]
[1732682102939,2.1534,232.27,232.23,2.1537]
[1732682103140,2.52,232.29,232.19,10.68786167]
[1732682103337,2.52,232.29,232.2,2.39151703]
[1732682103542,2.52,232.29,232.22,2.1538]
[1732682103742,2.52,232.29,232.2,1.314]
[1732682104042,2.52,232.31,232.21,1.07748845]
[1732682104345,2.52,232.31,232.2,1.314]
[1732682104748,2.1536,232.26,232.2,3.468]
[1732682104935,2.52,232.31,232.2,3.468]
[1732682105337,2.52,232.31,232.21,2.1539]
[1732682105738,2.52,232.31,232.2,1.314]
[1732682106140,2.1534,232.27,232.22,2.1538]
[1732682106839,2.1534,232.27,232.21,2.1539]
[1732682107043,6.84225572,232.26,232.21,2.1539]
[1732682109042,6.84225572,232.28,232.2,8.15625572]
[1732682109245,6.84225572,232.3,232.22,6.84225572]
[1732682109436,6.84225572,232.28,232.2,8.15625572]
[1732682109641,6.84225572,232.28,232.23,2.1537]
[1732682110042,2.52,232.31,232.13,5.8771244]
[1732682110240,6.84225572,232.21,232.11,6.84225572]
[1732682110446,6.84225572,232.19,232.12,1.07787464]
[1732682110646,6.84225572,232.19,232.11,6.84225572]
[1732682110846,2.1542,232.18,232.12,2.1547]
[1732682112249,8.99635572,232.19,232.12,2.1547]
[1732682112447,8.99635572,232.19,232.13,2.1547]
[1732682112852,2.1541,232.19,232.13,8.99695572]
[1732682113844,6.84225572,232.15,232.04,24.1088276]
[1732682114043,15.1025053,232.31,232.05,1.07798381]
[1732682114044,6.84225572,232.1,232.05,1.07798381]
[1732682114248,1.3087,232.18,232.04,0.60033]
[1732682114249,6.84225572,232.08,232.04,0.60033]
[1732682114448,8.99735572,232.08,232.04,0.60033]
[1732682114842,2.1551,232.08,232.04,0.60033]
[1732682115546,8.99735572,232.08,232.04,0.60033]
[1732682115751,2.52,232.09,232.04,0.60033]
[1732682115752,6.84225572,232.06,232.04,0.60033]
[1732682115946,6.84225572,232.06,231.93,2.1565]
[1732682116145,6.84225572,232.01,231.93,8.99875572]
[1732682116347,2.6,232.02,231.91,10.71461718]
[1732682116548,2.6,232.02,231.96,2.1562]
[1732682116748,2.6,232.02,231.91,10.71461718]
[1732682117154,2.1558,232.01,231.94,2.1564]
[1732682117346,2.6,232.02,231.91,10.71461718]
[1732682119059,4.7557,232.02,231.91,2.1567]
[1732682119256,2.6,232.02,231.87,1.332]
[1732682119461,2.6,232.02,231.91,10.71461718]
[1732682120260,2.1558,232.01,231.94,2.1564]
[1732682120662,2.6,232.02,231.88,10.71461718]
[1732682122463,2.1562,231.97,231.91,2.1567]
[1732682122663,2.6,232.02,231.88,10.71461718]
[1732682122866,2.156,231.99,231.93,2.1565]
[1732682123062,2.6,232.02,231.91,10.71461718]
[1732682123861,2.6,232.02,231.88,10.71461718]
[1732682124667,2.1561,231.98,231.92,2.1566]
[1732682124865,2.6,232.02,231.88,10.71461718]
[1732682125265,2.6,232.02,231.87,1.332]
[1732682125266,10.71461718,232.0,231.87,1.332]
[1732682125461,10.71461718,232.0,231.85,12.03341718]
[1732682125462,10.71461718,231.94,231.82,12.02701718]
[1732682125660,2.6,231.93,231.82,1.3124]
[1732682125862,2.6,231.93,231.81,58.41686983]
[1732682126262,10.71461718,231.91,231.81,0.28344]
[1732682126666,2.1569,231.89,231.83,2.1574]
[1732682126968,10.71461718,231.91,231.81,0.28344]
[1732682127169,2.1569,231.89,231.82,2.1575]
[1732682127663,2.1568,231.91,231.83,2.1574]
[1732682127869,2.6,231.9,231.81,0.28344]
[1732682128769,1.324,232.03,231.81,0.28344]
[1732682128960,10.71461718,231.99,231.82,10.71461718]
[1732682129361,10.71461718,231.99,231.83,1.2245]
[1732682129586,2.1563,231.96,231.89,2.1569]
[1732682129866,2.6,231.95,231.83,1.2245]
[1732682130271,2.1564,231.94,231.87,2.1571]
[1732682130573,2.6,231.95,231.83,1.2245]
[1732682130967,2.1565,231.94,231.85,2.1572]
[1732682131168,10.71461718,231.93,231.81,0.28344]
[1732682131565,1.3198,231.94,231.81,0.28344]
[1732682131566,2.157,231.88,231.81,0.28344]
[1732682132162,2.6,231.89,231.82,2.1575]
[1732682132460,2.6,231.89,231.81,0.28344]
[1732682134777,2.6,231.89,231.84,2.1573]
[1732682134778,4.7569,231.89,231.84,2.1573]
[1732682135270,2.6,231.89,231.81,0.28344]
[1732682135575,2.1568,231.91,231.81,0.28344]
[1732682135789,2.6,231.92,231.81,0.28344]
[1732682136768,2.157,231.89,231.83,2.1574]
[1732682137171,2.1569,231.9,231.83,2.1574]
[1732682137367,2.6,231.92,231.83,2.1574]
[1732682137576,10.71461718,231.91,231.81,0.28344]
[1732682137776,2.157,231.88,231.81,0.28344]
[1732682138773,1.2203,232.06,231.82,10.71461718]
[1732682138974,10.71461718,232.01,231.85,10.71461718]
[1732682139176,2.1562,231.98,231.93,2.1565]
[1732682139673,2.6,232.0,231.93,2.1565]
[1732682140074,2.156,231.99,231.93,2.1565]
[1732682141172,2.6,232.0,231.94,2.1564]
[1732682141376,2.6,232.04,231.91,10.71461718]
[1732682142075,4.7556,232.04,231.94,2.1564]
[1732682142278,4.7556,232.04,231.91,10.71461718]
[1732682142472,2.6,232.04,231.91,10.71461718]
[1732682142878,2.1556,232.03,231.91,10.71461718]
[1732682143280,2.6,232.04,231.91,10.71461718]
[1732682143479,2.1557,232.02,231.96,2.1562]
[1732682144475,2.6,232.05,231.91,10.71461718]
[1732682145184,2.1556,232.04,231.91,10.71461718]
[1732682146083,2.1556,232.04,231.92,1.2683]
[1732682146685,1.2013,232.1,231.92,1.2683]
[1732682146686,1.2013,232.1,231.97,10.71461718]
[1732682146880,1.2013,232.1,231.98,2.6435]
[1732682147179,2.56,232.12,232.0,10.71461718]
[1732682148082,2.155,232.1,232.04,2.1555]
[1732682148585,2.1549,232.11,232.05,2.1554]
[1732682148784,2.1549,232.11,231.98,2.6435]
[1732682149481,2.155,232.1,231.98,2.6435]
[1732682150187,2.155,232.1,232.04,2.1555]
[1732682150586,2.56,232.12,232.03,2.1555]
[1732682151384,2.56,232.12,231.98,2.6435]
[1732682151888,10.71461718,232.11,231.98,2.6435]
[1732682152387,10.71461718,232.11,232.01,2.1557]
[1732682152785,2.1553,232.07,231.99,2.1559]
[1732682152980,10.71461718,232.11,231.99,2.1559]
[1732682153283,10.71461718,232.11,231.98,2.6435]
[1732682153489,10.71461718,232.11,231.98,4.7995]
[1732682153789,10.71461718,232.11,231.98,2.6435]
[1732682154085,2.1554,232.06,231.99,2.156]
[1732682154287,10.71461718,232.08,231.99,2.156]
[1732682154489,2.1553,232.07,232.0,2.1559]
[1732682155086,10.71461718,232.08,232.0,2.1559]
[1732682155287,2.1554,232.06,232.0,2.1559]
[1732682155892,2.1554,232.05,231.98,4.7995]
[1732682156188,2.1554,232.05,231.98,2.6435]
[1732682156887,2.1557,232.03,231.98,4.7995]
[1732682157087,10.71461718,232.05,231.92,1.2683]
[1732682157293,10.71461718,232.02,231.92,1.2683]
[1732682157492,13.27461718,232.02,231.92,1.2683]
[1732682158496,2.156,231.99,231.94,2.1564]
[1732682158693,13.27461718,232.02,231.88,5.0152]
[1732682158897,2.1559,232.0,231.89,1.07887183]
[1732682159089,2.1559,232.0,231.9,1.07887183]
[1732682159286,2.1559,232.0,231.88,5.0152]
[1732682159492,2.1559,232.0,231.89,1.0788547]
[1732682159685,2.1559,232.0,231.9,1.0788547]
[1732682159886,2.1559,232.0,231.95,2.1563]
[1732682160597,2.156,231.99,231.88,5.0152]
[1732682160789,2.156,231.99,231.89,1.07886903]
[1732682160991,2.156,231.99,231.9,1.07886903]
[1732682161195,2.156,231.99,231.88,5.0152]
[1732682161196,2.156,231.99,231.95,2.1563]
[1732682161497,2.1559,232.01,231.95,2.1563]
[1732682161697,13.27461718,232.02,231.95,2.1563]
[1732682161991,2.56,232.02,231.97,2.1561]
[1732682162194,2.56,232.06,231.93,10.71461718]
[1732682162592,2.1554,232.05,232.0,2.1559]
[1732682163399,2.56,232.06,232.0,2.1559]
[1732682163696,4.7153,232.06,232.0,2.1559]
[1732682163892,2.56,232.06,231.99,2.156]
[1732682164095,2.56,232.06,231.94,2.56]
[1732682164600,4.7154,232.06,231.94,2.56]
[1732682164793,1.331,232.18,231.99,10.71461718]
[1732682164794,10.71461718,232.16,231.99,10.71461718]
[1732682164992,10.71461718,232.16,232.02,10.71461718]
[1732682165298,1.2745,232.17,232.02,13.27461718]
[1732682165491,2.56,232.2,232.05,10.71461718]
[1732682165890,2.1544,232.16,232.1,2.1549]
[1732682166692,10.71461718,232.19,232.1,2.1549]
[1732682167398,2.1544,232.16,232.08,2.56]
[1732682167599,10.71461718,232.19,232.08,2.56]
[1732682167899,2.1544,232.17,232.09,2.155]
[1732682168102,2.56,232.2,232.08,13.27461718]
[1732682168502,2.1543,232.18,232.11,2.1548]
[1732682169492,10.71461718,232.22,232.11,2.1548]
[1732682169493,2.1539,232.22,232.15,2.1545]